bitfinex-derivatives/quotes_SOLF0:USTF0_20250307
["timestamp","ask_amount","ask_price","bid_price","bid_amount"]
[1741358858410,6.7793,147.49,147.39,2.0562]
[1741358858609,0.71100449,147.5,147.39,2.0562]
[1741358858810,0.71100449,147.5,147.4,46.52671272]
[1741358859006,0.71100449,147.5,147.43,46.48216034]
[1741358859817,0.71100449,147.5,147.39,2.0562]
[1741358860115,46.48216034,147.65,147.48,46.48216034]
[1741358860418,46.48216034,147.65,147.51,46.48216034]
[1741358860614,48.01387601,147.62,147.49,64.0034]
[1741358860817,0.04716401,147.56,147.54,0.04424011]
[1741358861016,107.91674661,147.59,147.54,0.04424011]
[1741358861215,9.74e-06,147.7,147.54,57.0]
[1741358861420,358.67583117,147.82,147.69,139.44648102]
[1741358861617,358.67583117,147.82,147.81,46.48216034]
[1741358862122,379.01583117,147.82,147.77,46.48216034]
[1741358862416,379.01583117,147.82,147.8,0.04590455]
[1741358863318,20.34,147.82,147.8,0.04590455]
[1741358863512,0.04525125,147.83,147.7,46.48216034]
[1741358863824,20.38525125,147.83,147.78,46.48216034]
[1741358864021,203.42,147.93,147.81,46.48216034]
[1741358864322,203.42,147.93,147.77,46.48216034]
[1741358864323,21.87137643,147.86,147.74,46.48216034]
[1741358864524,21.87137643,147.86,147.7,46.48216034]
[1741358864822,46.53286407,147.85,147.81,66.32348183]
[1741358865015,203.42,147.84,147.81,63.21888183]
[1741358865217,205.3366,147.84,147.81,47.69688183]
[1741358865417,46.48216034,147.83,147.8,149.04431836]
[1741358865920,6.7646,147.81,147.8,149.04431836]
[1741358866113,46.48216034,147.81,147.79,158.90163339]
[1741358866314,49.86216034,147.81,147.79,87.84463339]
[1741358866521,249.90216034,147.84,147.73,212.29181074]
[1741358866715,46.48216034,147.79,147.73,212.29181074]
[1741358866919,46.48216034,147.76,147.73,212.29181074]
[1741358867217,203.3,147.82,147.73,219.06183834]
[1741358867423,0.05150552,147.76,147.73,212.33891228]
[1741358867626,0.05150552,147.76,147.73,219.10893988]
[1741358867815,203.3,147.82,147.73,212.29181074]
[1741358868017,203.3,147.82,147.75,6.7700276]
[1741358868414,203.3,147.82,147.71,1.9763]
[1741358868623,203.3,147.82,147.74,6.7700276]
[1741358869027,49.19150072,147.86,147.75,6.7700276]
[1741358869215,2.70934038,147.86,147.78,6.7700276]
[1741358869416,1.53137643,147.86,147.8,6.7700276]
[1741358869624,0.04502984,147.83,147.8,6.7700276]
[1741358869828,0.04502984,147.83,147.82,0.04289804]
[1741358870029,0.04502984,147.83,147.82,9.804e-05]
[1741358870230,1.53137643,147.86,147.73,46.48216034]
[1741358870533,1.53137643,147.86,147.75,6.7700276]
[1741358870729,1.53137643,147.86,147.82,6.7700276]
[1741358870928,1.53137643,147.86,147.81,6.7700276]
[1741358871325,0.05101789,147.85,147.83,0.04718912]
[1741358871719,1.17726658,147.94,147.88,46.48216034]
[1741358872025,46.48216034,148.01,147.9,6.7700276]
[1741358872224,6.7576,147.97,147.88,6.7700276]
[1741358872421,203.14,147.99,147.92,6.7700276]
[1741358872621,203.14,147.99,147.84,68.68386034]
[1741358872831,6.7603,147.91,147.86,6.7700276]
[1741358873126,46.48216034,147.92,147.88,0.04819426]
[1741358873332,203.14,147.9,147.79,46.48216034]
[1741358873523,203.1917018,147.9,147.83,6.7700276]
[1741358873722,203.14,147.9,147.82,6.7700276]
[1741358873918,203.14,147.9,147.8,46.48216034]
[1741358874120,1.48735365,147.95,147.83,46.48216034]
[1741358874332,1.48735365,147.95,147.86,46.48216034]
[1741358874628,1.48735365,147.95,147.92,6.7700276]
[1741358874928,1.52101676,148.03,147.94,6.7700276]
[1741358875229,0.04619521,147.95,147.9,6.7700276]
[1741358875427,204.60101676,148.03,147.92,0.04407875]
[1741358875725,0.0452549,147.94,147.92,0.04407875]
[1741358876028,204.60101676,148.03,147.87,46.48216034]
[1741358876029,46.48216034,148.0,147.87,46.48216034]
[1741358876225,0.04386305,147.94,147.92,0.05039646]
[1741358876418,6.7591,147.93,147.92,0.05039646]
[1741358876630,203.08,147.93,147.85,4.066]
[1741358876824,206.46,147.93,147.77,46.48216034]
[1741358877029,46.48216034,147.92,147.8,6.7700276]
[1741358877335,46.48216034,147.89,147.77,27.0500276]
[1741358877531,46.48216034,147.91,147.81,6.7700276]
[1741358877719,46.48216034,147.91,147.77,20.28]
[1741358878028,0.04985432,147.87,147.77,20.28]
[1741358878226,0.04985432,147.87,147.81,6.7700276]
[1741358878427,46.48216034,147.91,147.8,6.7700276]
[1741358878629,46.48216034,147.91,147.76,46.48216034]
[1741358878934,203.08,147.93,147.81,6.7700276]
[1741358879231,203.08,147.93,147.76,46.48216034]
[1741358879232,6.7635,147.84,147.8,6.7700276]
[1741358879433,0.05155735,147.88,147.86,5.335e-05]
[1741358879629,46.48216034,147.92,147.77,46.48216034]
[1741358879929,203.04,148.02,147.88,6.7700276]
[1741358880130,1.52101676,148.03,147.84,46.48216034]
[1741358880131,48.0031771,148.03,147.94,6.7700276]
[1741358880323,48.0031771,148.03,147.92,6.7700276]
[1741358880523,48.0031771,148.03,147.94,6.7700276]
[1741358880734,6.7592,147.93,147.89,66.76216034]
[1741358881024,48.0031771,148.03,147.9,6.7700276]
[1741358881025,46.48216034,147.98,147.9,6.7700276]
[1741358881225,6.7628,147.85,147.79,50.44396034]
[1741358881426,46.48216034,147.98,147.83,6.7700276]
[1741358881631,203.0,147.99,147.91,6.7700276]
[1741358881833,203.0,147.99,147.92,6.7700276]
[1741358882031,203.0,147.99,147.8,203.0]
[1741358882032,0.0464251,147.96,147.8,203.0]
[1741358882233,46.48216034,147.95,147.85,6.7700276]
[1741358882427,46.48216034,147.92,147.84,6.7700276]
[1741358882731,0.05076851,147.91,147.81,6.7700276]
[1741358883029,203.0,147.91,147.8,20.28]
[1741358883235,0.05122765,147.87,147.74,46.48216034]
[1741358883531,203.0,147.91,147.74,2.0277]
[1741358883739,0.04951921,147.82,147.78,46.48216034]
[1741358883921,203.0,147.91,147.81,46.48216034]
[1741358884126,46.48216034,147.96,147.81,46.48216034]
[1741358884430,203.0,147.96,147.84,46.48216034]
[1741358884626,46.48216034,148.05,147.87,46.48216034]
[1741358884627,46.48216034,148.01,147.87,46.48216034]
[1741358884833,46.48216034,148.01,147.84,66.76216034]
[1741358885132,0.04859335,147.95,147.93,0.05093123]
[1741358885535,6.7559,148.0,147.9,6.7605]
[1741358885832,0.05099574,147.95,147.93,0.04338121]
[1741358886131,46.48216034,148.02,147.93,0.04338121]
[1741358886333,0.04594663,147.95,147.93,0.04338121]
[1741358886532,0.04594663,147.95,147.81,46.48216034]
[1741358886833,0.05112299,147.89,147.87,0.05041227]
[1741358887029,249.42216034,147.9,147.78,4.0365]
[1741358887232,46.48216034,147.87,147.78,24.3165]
[1741358887534,46.48216034,147.87,147.78,22.2398]
[1741358887924,202.94,147.89,147.78,22.2398]
[1741358888222,0.04268277,147.85,147.81,46.48216034]
[1741358888424,249.50996034,147.97,147.84,46.48216034]
[1741358888823,249.50996034,147.97,147.84,66.76216034]
[1741358889020,46.48216034,147.94,147.78,1.9598]
[1741358889234,46.48216034,147.88,147.78,22.2398]
[1741358889430,249.50996034,147.97,147.78,22.2398]
[1741358889636,0.0445981,147.84,147.82,0.0469566]
[1741358889832,202.94,147.88,147.8,46.48216034]
[1741358890033,46.48216034,147.94,147.82,0.0482061]
[1741358890228,202.94,147.99,147.83,46.48216034]
[1741358890428,249.42216034,147.99,147.86,46.48216034]
[1741358890829,6.7583,147.95,147.86,53.24436034]
[1741358891132,202.94,147.99,147.89,46.48216034]
[1741358891330,202.94,147.99,147.9,6.76]
[1741358891331,209.6968,147.99,147.9,6.76]
[1741358891634,202.94,147.99,147.89,46.48216034]
[1741358891826,6.7598,147.92,147.84,4.0907]
[1741358892029,202.94,147.99,147.86,46.48216034]
[1741358892332,46.48216034,147.98,147.86,46.48216034]
[1741358892526,46.48216034,147.92,147.91,7.232e-05]
[1741358892727,46.48216034,147.92,147.79,96.67341707]
[1741358892925,6.7633,147.84,147.79,116.95341707]
[1741358893129,202.94,147.99,147.83,46.48216034]
[1741358893333,46.48216034,147.98,147.83,46.48216034]
[1741358893536,46.48216034,147.98,147.83,66.76216034]
[1741358893835,46.48216034,147.95,147.83,66.76216034]
[1741358894026,6.7605,147.9,147.89,7.001e-05]
[1741358894532,206.28,147.9,147.82,69.28799159]
[1741358894840,46.48216034,147.96,147.82,69.28799159]
[1741358895140,46.48216034,148.0,147.86,46.48216034]
[1741358895335,46.48216034,148.0,147.88,0.04926494]
[1741358895640,0.0927,148.02,147.89,46.48216034]
[1741358895937,46.48216034,148.0,147.86,46.48216034]
[1741358896237,0.0927,148.02,147.89,46.48216034]
[1741358896533,0.04408105,147.94,147.92,0.04854303]
[1741358896737,1.52101676,148.03,147.92,46.53070337]
[1741358897035,1.51631462,148.19,147.99,46.48216034]
[1741358897229,1.51631462,148.19,148.0,3.9732]
[1741358897436,48.01201378,148.11,148.0,20.28]
[1741358897636,1.52985344,148.11,147.96,142.31996035]
[1741358897943,0.04585109,148.07,148.04,0.04793333]
[1741358898445,6.7533,148.06,148.04,0.04793333]
[1741358898641,0.04585109,148.07,148.04,0.04793333]
[1741358899038,1.52985344,148.11,148.04,0.04793333]
[1741358899242,1.52985344,148.11,148.09,46.48216034]
[1741358899440,1.51631462,148.19,148.09,46.48216034]
[1741358899636,1.51631462,148.19,148.05,1.9139]
[1741358899940,6.7505,148.12,148.05,20.66404656]
[1741358900139,46.48216034,148.15,148.01,46.48216034]
[1741358900336,46.48216034,148.12,147.98,46.48216034]
[1741358900747,46.48216034,148.12,147.98,65.2323069]
[1741358900936,46.48216034,148.06,147.96,95.83780001]
[1741358901135,46.48216034,148.12,147.88,202.84]
[1741358901136,46.48216034,148.03,147.89,2.0489]
[1741358901340,46.48216034,147.97,147.88,18.75014656]
[1741358901537,46.48216034,147.94,147.83,64.53156731]
[1741358901742,46.48216034,147.88,147.83,64.53156731]
[1741358901946,46.48216034,147.85,147.83,39.66941833]
[1741358902249,202.82,147.84,147.83,1.833e-05]
[1741358902640,206.2,147.84,147.83,1.833e-05]
[1741358902837,252.68216034,147.84,147.73,26.54980842]
[1741358903040,46.48216034,147.8,147.73,26.54980842]
[1741358903344,202.82,147.84,147.67,2.0489]
[1741358903345,46.48216034,147.74,147.67,2.0489]
[1741358903649,249.30216034,147.74,147.64,105.66741048]
[1741358903843,6.7672,147.76,147.65,46.48216034]
[1741358904039,46.48216034,147.84,147.68,0.05059857]
[1741358904040,0.04655843,147.7,147.68,0.05059857]
[1741358904448,6.81625843,147.7,147.68,9.857e-05]
[1741358904645,49.90871877,147.7,147.64,91.03010905]
[1741358904941,53.25406034,147.65,147.64,19.16330905]
[1741358905148,92.96432068,147.65,147.58,269.55910729]
[1741358905349,46.48216034,147.59,147.58,237.03290729]
[1741358905547,46.48216034,147.59,147.58,209.71950729]
[1741358905750,46.48216034,147.59,147.5,26.54980842]
[1741358906046,46.48216034,147.53,147.5,26.54980842]
[1741358906245,46.48216034,147.53,147.35,46.48216034]
[1741358906447,46.48216034,147.48,147.31,32.65844155]
[1741358906651,46.48216034,147.48,147.31,51.40858811]
[1741358906848,46.53247923,147.43,147.31,32.65844155]
[1741358907051,0.05031889,147.43,147.38,0.04569239]
[1741358907261,46.48216034,147.45,147.38,0.04569239]
[1741358907549,56.3620486,147.47,147.41,46.48216034]
[1741358907856,46.48216034,147.58,147.38,0.04569239]
[1741358908052,46.48216034,147.54,147.4,46.40736766]
[1741358908347,46.48216034,147.56,147.4,46.40736766]
[1741358908554,30.98573375,147.57,147.43,46.48216034]
[1741358908859,30.98573375,147.57,147.46,46.41130485]
[1741358909049,0.04412873,147.51,147.49,0.04537911]
[1741358909451,30.98573375,147.56,147.49,0.04537911]
[1741358909756,46.52850626,147.51,147.35,46.48216034]
[1741358909956,46.48216034,147.47,147.35,46.48216034]
[1741358910155,249.60216034,147.5,147.35,46.48216034]
[1741358910656,203.12,147.5,147.38,46.48216034]
[1741358910852,0.04905531,147.44,147.41,0.04322034]
[1741358911254,46.48216034,147.49,147.34,46.48216034]
[1741358911452,0.04760345,147.44,147.41,0.04728728]
[1741358912052,203.24,148.03,147.45,57.0]
[1741358912252,46.48216034,147.84,147.69,46.48216034]
[1741358912451,124.0,147.83,147.69,46.48216034]
[1741358912753,46.48216034,147.82,147.66,46.48216034]
[1741358913047,1.8503,147.83,147.69,46.48216034]
[1741358913254,203.24,147.84,147.75,46.48216034]
[1741358913655,0.05114099,147.77,147.75,46.48216034]
[1741358913857,0.05114099,147.77,147.72,46.48216034]
[1741358914050,0.05114099,147.77,147.75,46.48216034]
[1741358914248,203.2,147.92,147.76,46.48216034]
[1741358914454,203.2,147.92,147.8,46.48216034]
[1741358914648,203.2,147.92,147.83,46.48216034]
[1741358915556,0.04790292,147.89,147.86,0.04424782]
[1741358916860,3.42790292,147.89,147.87,576.01045048]
[1741358917063,46.48216034,147.88,147.87,22.34927437]
[1741358917265,3.42790292,147.89,147.87,22.29827437]
[1741358917563,3.42790292,147.89,147.87,15.53827437]
[1741358917752,49.91006326,147.89,147.76,133.01591036]
[1741358917965,46.48216034,147.84,147.76,133.01591036]
[1741358918164,203.12,147.83,147.76,133.01591036]
[1741358918860,46.48216034,147.81,147.76,133.01591036]
[1741358919065,46.52557065,147.81,147.78,0.04758165]
[1741358919475,46.48216034,147.81,147.71,162.57500156]
[1741358919771,46.48216034,147.75,147.71,162.57500156]
[1741358919961,203.1,147.74,147.71,162.57500156]
[1741358920160,203.14562767,147.74,147.72,0.05125276]
[1741358920578,201.96712519,147.74,147.72,0.05125276]
[1741358920772,46.48216034,147.73,147.72,0.05125276]
[1741358921173,49.86216034,147.73,147.72,0.05125276]
[1741358921373,49.86216034,147.73,147.71,162.57500156]
[1741358921672,51.04088237,147.73,147.58,46.48216034]
[1741358921869,6.7715,147.66,147.58,13.56424782]
[1741358922069,203.1,147.65,147.58,13.56424782]
[1741358922264,203.1,147.65,147.54,46.48216034]
[1741358922580,0.04296766,147.63,147.6,0.04876391]
[1741358922871,46.48216034,147.67,147.54,46.48216034]
[1741358923074,203.16,147.66,147.51,61.90580816]
[1741358923272,0.04501699,147.63,147.6,0.05036404]
[1741358923471,46.48216034,147.64,147.51,61.90580816]
[1741358923667,0.04925525,147.63,147.6,0.04806213]
[1741358923875,46.48216034,147.61,147.51,15.42364782]
[1741358924067,240.0,148.05,147.51,1.8594]
[1741358924371,46.48216034,147.74,147.6,46.52672592]
[1741358924570,203.16,147.73,147.57,2.0345]
[1741358924770,203.16,147.73,147.6,46.48216034]
[1741358924973,203.16,147.73,147.63,46.48216034]
[1741358925572,0.04978482,147.69,147.67,0.05111139]
[1741358926175,1.35308842,147.81,147.68,108.48216034]
[1741358926375,46.48216034,147.88,147.75,46.48216034]
[1741358926576,6.7627,147.86,147.75,46.48216034]
[1741358927080,6.7629,147.85,147.75,46.48216034]
[1741358927274,0.04506884,147.82,147.79,0.0505039]
[1741358927476,46.52722918,147.82,147.79,0.0505039]
[1741358927671,46.48216034,147.82,147.68,46.48216034]
[1741358927974,0.04336594,147.82,147.79,0.0038858]
[1741358928179,46.48216034,147.82,147.69,46.48216034]
[1741358928484,46.48216034,147.78,147.69,13.56424782]
[1741358929073,46.48216034,147.75,147.64,3.7408]
[1741358929274,203.16,147.74,147.72,0.04467051]
[1741358929474,203.16,147.74,147.64,3.7408]
[1741358929781,46.48216034,147.72,147.64,15.45474782]
[1741358930185,46.48216034,147.69,147.68,4.214e-05]
[1741358930481,46.48216034,147.69,147.55,46.48216034]
[1741358930670,46.48216034,147.64,147.55,13.56424782]
[1741358930876,203.16,147.63,147.51,1.8884]
[1741358931073,203.16,147.63,147.51,15.45264782]
[1741358931274,46.48216034,147.61,147.51,15.45264782]
[1741358931469,6.7756,147.57,147.56,0.04503562]
[1741358932373,6.778,147.52,147.43,1.9045]
[1741358932574,203.22,147.52,147.43,15.46874782]
[1741358932882,203.22,147.52,147.43,1.9045]
[1741358933182,249.70216034,147.52,147.43,15.46874782]
[1741358933382,249.70216034,147.52,147.41,1.8884]
[1741358933582,0.04921485,147.49,147.41,15.45264782]
[1741358933774,0.04921485,147.49,147.41,1.8884]
[1741358934284,203.22,147.66,147.46,46.48216034]
[1741358934485,6.7748,147.59,147.46,46.48216034]
[1741358934677,46.48216034,147.61,147.46,46.48216034]
[1741358934878,46.48216034,147.7,147.54,46.48216034]
[1741358935080,1.23403875,147.69,147.57,46.48216034]
[1741358935386,46.48216034,147.7,147.54,46.48216034]
[1741358935580,0.05179145,147.64,147.62,0.04587273]
[1741358935778,0.05179145,147.64,147.57,46.48216034]
[1741358935976,46.48216034,147.7,147.62,0.04975303]
[1741358936179,46.48216034,147.7,147.54,46.48216034]
[1741358936379,0.05012678,147.67,147.54,46.48216034]
[1741358936686,46.48216034,147.7,147.57,46.48216034]
[1741358936886,0.04344751,147.62,147.55,1.8706]
[1741358937090,0.04344751,147.62,147.59,0.04915886]
[1741358937291,46.48216034,147.67,147.59,0.04915886]
[1741358937488,0.04907156,147.62,147.59,0.04915886]
[1741358939080,6.7742,147.6,147.59,0.04915886]
[1741358939286,6.7742,147.6,147.59,5.886e-05]
[1741358939587,10.1542,147.6,147.59,5.886e-05]
[1741358939788,5.79457258,147.6,147.46,3.8685]
[1741358939989,46.48216034,147.52,147.35,1.18002102]
[1741358940180,46.48216034,147.49,147.38,1.9586]
[1741358940384,46.48216034,147.46,147.38,15.52284782]
[1741358940788,46.48216034,147.43,147.3,46.48216034]
[1741358941090,46.48216034,147.4,147.3,13.56424782]
[1741358941392,46.48216034,147.37,147.27,1.9586]
[1741358941582,0.04290841,147.38,147.27,15.52284782]
[1741358941782,6.7862,147.34,147.27,1.9586]
[1741358941987,0.04310255,147.34,147.27,15.52284782]
[1741358942185,46.48216034,147.32,147.27,15.52284782]
[1741358942386,203.36,147.39,147.24,1.9099]
[1741358942577,0.04773372,147.31,147.25,46.48216034]
[1741358942779,203.36,147.39,147.28,46.48216034]
[1741358943078,46.48216034,147.38,147.24,48.39206034]
[1741358943279,46.48216034,147.44,147.3,46.48216034]
[1741358943483,46.48216034,147.51,147.36,46.48216034]
[1741358943685,1.23546252,147.5,147.38,46.48216034]
[1741358943987,0.04289307,147.45,147.42,0.05011091]
[1741358944192,276.18102703,147.55,147.42,0.05011091]
[1741358944383,46.48216034,147.49,147.42,13.56424782]
[1741358944586,46.48216034,147.46,147.37,1.8906]
[1741358944783,46.48216034,147.49,147.37,1.8906]
[1741358945087,46.48216034,147.49,147.37,15.45484782]
[1741358945288,46.48216034,147.51,147.42,0.04547025]
[1741358945590,6.7803,147.47,147.37,15.45484782]
[1741358945891,46.48216034,147.44,147.37,1.8906]
[1741358946088,6.7825,147.42,147.41,4.776e-05]
[1741358946684,104.38298192,147.42,147.41,4.776e-05]
[1741358946889,97.60048192,147.42,147.29,1.9866]
[1741358947192,46.48216034,147.35,147.29,15.55084782]
[1741358947493,46.48216034,147.32,147.24,1.8766]
[1741358947689,46.48216034,147.32,147.24,13.56424782]
[1741358947894,46.48216034,147.29,147.15,50.34536034]
[1741358948192,0.0509557,147.29,147.27,0.04349614]
[1741358948396,203.5,147.35,147.21,46.48216034]
[1741358948693,46.48216034,147.49,147.27,46.52894311]
[1741358948885,46.48216034,147.44,147.3,46.48216034]
[1741358949289,6.784,147.39,147.31,1.9672]
[1741358949488,46.48216034,147.44,147.31,1.9672]
[1741358949888,0.04847578,147.39,147.36,0.049294]
[1741358950089,46.48216034,147.41,147.36,0.049294]
[1741358950293,6.7848,147.37,147.36,13.56434182]
[1741358950487,46.48216034,147.42,147.31,1.9672]
[1741358950683,46.48216034,147.42,147.31,3.66114182]
[1741358950994,46.48216034,147.35,147.28,3.9613]
[1741358951196,46.48216034,147.35,147.28,5.65524182]
[1741358951492,46.48216034,147.32,147.12,203.54]
[1741358951692,0.05056905,147.33,147.3,0.00061891]
[1741358951899,46.48216034,147.31,147.18,46.48216034]
[1741358952390,46.48216034,147.35,147.18,46.48216034]
[1741358952596,194.0,147.63,147.21,46.48216034]
[1741358952797,46.48216034,147.41,147.27,46.48216034]
[1741358952994,204.72108232,147.47,147.3,46.48216034]
[1741358953197,204.72108232,147.47,147.33,46.48216034]
[1741358953198,46.48216034,147.45,147.33,46.48216034]
[1741358953704,203.54,147.47,147.33,46.48216034]
[1741358953892,46.48216034,147.45,147.33,1.69385622]
[1741358954198,0.04594676,147.41,147.39,0.04567197]
[1741358954695,0.05177743,147.41,147.39,0.04567197]
[1741358955595,46.48216034,147.49,147.39,1.73952819]
[1741358955789,46.48216034,147.49,147.39,0.04567197]
[1741358956091,203.62,147.53,147.39,1.69385622]
[1741358956300,46.48216034,147.46,147.39,1.69385622]
[1741358956596,0.05174866,147.44,147.41,0.04924309]
[1741358956995,46.48216034,147.43,147.41,0.04924309]
[1741358957188,6.7825,147.42,147.41,4.309e-05]
[1741358957790,10.1825,147.42,147.41,4.309e-05]
[1741358957991,6.7825,147.42,147.41,4.309e-05]
[1741358958496,6.7825,147.42,147.31,2.0223]
[1741358958497,51.11817092,147.42,147.31,2.0223]
[1741358958696,46.48216034,147.34,147.31,1.69385622]
[1741358958901,203.62,147.44,147.28,46.48216034]
[1741358958902,46.48216034,147.41,147.28,46.48216034]
[1741358959505,6.7866,147.34,147.33,0.05078781]
[1741358959697,0.05043059,147.36,147.33,0.05078781]
[1741358960397,0.05043059,147.36,147.33,1.74464403]
[1741358960906,203.62,147.44,147.33,46.53294815]
[1741358961098,6.7815,147.45,147.33,46.53294815]
[1741358961299,250.10216034,147.5,147.36,46.48216034]
[1741358961498,1.23545084,147.49,147.37,1.8878]
[1741358961701,6.7817,147.44,147.37,1.8878]
[1741358961902,250.10216034,147.5,147.37,1.8878]
[1741358962206,46.48216034,147.53,147.39,46.52731426]
[1741358962391,322.90318737,147.56,147.39,46.48216034]
[1741358962593,1.23494214,147.55,147.37,1.8878]
[1741358962799,46.48216034,147.49,147.37,1.8878]
[1741358963002,322.90318737,147.56,147.37,1.8878]
[1741358963203,46.48216034,147.54,147.41,46.48216034]
[1741358963403,72.82102703,147.56,147.45,0.04897802]
[1741358963705,72.82102703,147.56,147.44,46.48216034]
[1741358963906,72.82102703,147.56,147.45,3.8683]
[1741358964096,6.7791,147.5,147.45,3.8683]
[1741358964298,46.48216034,147.52,147.45,3.55862563]
[1741358964606,46.48216034,147.52,147.38,1.9531]
[1741358964800,0.04624818,147.5,147.38,3.8683]
[1741358965002,46.48216034,147.49,147.38,5.51172563]
[1741358965803,46.48216034,147.46,147.38,5.51172563]
[1741358966001,0.04583599,147.45,147.42,0.04509872]
[1741358966202,46.48216034,147.43,147.42,9.872e-05]
[1741358966500,53.26416034,147.43,147.42,9.872e-05]
[1741358966804,97.60026767,147.43,147.27,2.0107]
[1741358967004,46.48216034,147.38,147.27,2.0107]
[1741358967599,46.48216034,147.38,147.27,3.65412563]
[1741358967799,250.04216034,147.44,147.3,46.48216034]
[1741358967994,0.04282588,147.34,147.31,0.05001924]
[1741358968203,250.04216034,147.44,147.3,46.48216034]
[1741358968394,46.48216034,147.41,147.3,1.64342563]
[1741358968604,250.04216034,147.44,147.34,6.7861]
[1741358968803,46.48216034,147.41,147.28,46.48216034]
[1741358969003,46.48216034,147.38,147.28,1.64342563]
[1741358969406,0.05123481,147.34,147.32,0.04648012]
[1741358969700,6.7866,147.33,147.32,0.04648012]
[1741358969908,6.7866,147.33,147.28,1.64342563]
[1741358969909,203.65123481,147.34,147.24,1.939]
[1741358970107,46.48216034,147.32,147.24,1.64342563]
[1741358970603,6.7891,147.28,147.24,1.64342563]
[1741358970804,46.48216034,147.32,147.24,1.64342563]
[1741358971010,46.48216034,147.29,147.15,48.43066034]
[1741358971205,46.48216034,147.26,147.25,0.00519456]
[1741358971412,3.4,147.26,147.15,1.9485]
[1741358971608,53.27386034,147.23,147.15,3.59192563]
[1741358971813,46.48216034,147.23,147.15,3.59192563]
[1741358972009,46.48216034,147.23,147.11,1.9886]
[1741358972211,6.7936,147.18,147.11,3.63202563]
[1741358972415,46.48216034,147.2,147.11,3.63202563]
[1741358972609,0.0454798,147.16,147.13,0.05009115]
[1741358973514,0.0454798,147.16,147.13,1.69351678]
[1741358973909,0.0454798,147.16,147.13,0.05009115]
[1741358974112,250.20216034,147.24,147.13,0.05009115]
[1741358974515,250.20216034,147.24,147.1,46.48216034]
[1741358974903,203.72,147.24,147.13,46.48216034]
[1741358975207,46.48216034,147.28,147.13,46.48216034]
[1741358975407,0.05122103,147.2,147.17,0.05018084]
[1741358975704,203.72,147.3,147.21,6.792]
[1741358975907,203.72,147.3,147.16,46.48216034]
[1741358976110,46.48216034,147.28,147.18,6.7931]
[1741358976313,46.48216034,147.28,147.17,2.025]
[1741358976615,46.48216034,147.28,147.18,6.7931]
[1741358976914,0.04782261,147.24,147.21,0.04488093]
[1741358977418,46.48216034,147.22,147.07,46.48216034]
[1741358977711,46.48216034,147.22,147.08,3.9855]
[1741358977910,46.48216034,147.19,147.08,3.9855]
[1741358978111,46.48216034,147.19,147.08,5.58344583]
[1741358978320,46.48216034,147.19,147.08,3.9855]
[1741358978510,250.22216034,147.2,147.08,3.9855]
[1741358978710,0.05020747,147.15,147.12,0.04526733]
[1741358979616,6.7958,147.13,147.12,0.04526733]
[1741358979918,46.53236781,147.15,147.12,6.733e-05]
[1741358980309,6.7958,147.13,147.12,6.733e-05]
[1741358980511,0.05020747,147.15,147.12,6.733e-05]
[1741358981017,46.53236781,147.15,147.12,6.733e-05]
[1741358981203,6.7958,147.13,147.12,6.733e-05]
[1741358981505,46.53236781,147.15,147.12,6.733e-05]
[1741358981711,0.05020747,147.15,147.12,6.733e-05]
[1741358982215,0.05020747,147.15,147.12,1.59801316]
[1741358982417,0.05020747,147.15,147.12,6.733e-05]
[1741358983018,6.7954,147.14,147.12,1.59801316]
[1741358983222,0.05020747,147.15,147.12,1.59801316]
[1741358983523,0.05020747,147.15,147.12,6.733e-05]
[1741358984225,6.7958,147.13,147.12,6.733e-05]
[1741358984927,53.27796034,147.13,147.12,6.733e-05]
[1741358986232,46.48216034,147.13,147.01,6.8011]
[1741358986428,46.48216034,147.13,147.01,1.59794583]
[1741358987130,46.48216034,147.17,147.04,46.48216034]
[1741358987327,0.323,147.27,147.14,46.48216034]
[1741358987518,0.383,147.31,147.14,46.48216034]
[1741358987722,46.48216034,147.26,147.19,0.04896006]
[1741358987919,46.48216034,147.23,147.19,0.04896006]
[1741358988121,203.9,147.22,147.07,52.50936034]
[1741358988325,46.48216034,147.2,147.07,7.62514583]
[1741358988524,0.04384875,147.16,147.13,0.04682694]
[1741358989230,46.48216034,147.28,147.13,49.92898728]
[1741358989231,72.82102703,147.28,147.13,49.92898728]
[1741358989427,46.48216034,147.26,147.13,54.87550617]
[1741358989629,46.48216034,147.26,147.13,48.08010617]
[1741358989831,6.7913,147.23,147.13,48.08010617]
[1741358990026,46.48216034,147.26,147.13,48.08010617]
[1741358990221,0.04909748,147.19,147.17,0.04528102]
[1741358990423,46.48216034,147.23,147.13,1.59794583]
[1741358990725,0.0451872,147.19,147.17,0.04536112]
[1741358991026,72.82102703,147.28,147.16,46.48216034]
[1741358991231,203.9,147.3,147.14,53.27736034]
[1741358991432,203.9,147.3,147.14,108.48216034]